bitfinex/quotes_SOLUSD_20250216
["timestamp","ask_amount","ask_price","bid_price","bid_amount"]
[1739694740344,0.063,193.55,193.54,26.80894634]
[1739694740924,0.063,193.61,193.58,20.0]
[1739694741159,0.063,193.61,193.6,8.20029781]
[1739694743445,0.063,193.61,193.6,13.36549781]
[1739694747853,0.063,193.61,193.6,8.20029781]
[1739694748360,0.063,193.61,193.59,8.20029781]
[1739694748665,0.063,193.61,193.56,135.5]
[1739694748666,0.063,193.61,193.57,8.20029781]
[1739694749155,8.20029781,193.6,193.54,0.03]
[1739694750033,90.36329781,193.61,193.54,8.23029781]
[1739694750236,90.36329781,193.61,193.55,8.20029781]
[1739694750742,87.328,193.61,193.55,8.20029781]
[1739694752059,95.52829781,193.61,193.54,8.23029781]
[1739694752632,8.20029781,193.6,193.54,0.03]
[1739694752838,8.20029781,193.58,193.54,0.03]
[1739694753352,8.20029781,193.6,193.54,0.03]
[1739694754465,5.1655,193.59,193.54,0.03]
[1739694754756,8.20029781,193.57,193.54,0.03]
[1739694755841,13.36659781,193.57,193.54,0.03]
[1739694756963,8.20029781,193.56,193.54,0.03]
[1739694757261,82.1,193.55,193.54,0.03]
[1739694760862,82.1,193.55,193.54,8.23029781]
[1739694761270,82.163,193.61,193.54,8.23029781]
[1739694761563,82.163,193.61,193.56,8.20029781]
[1739694762350,87.3282,193.61,193.56,8.20029781]
[1739694763457,87.3282,193.61,193.55,8.20029781]
[1739694765639,95.52849781,193.61,193.54,8.23029781]
[1739694766367,95.52849781,193.61,193.55,0.03]
[1739694766757,8.20029781,193.6,193.55,0.03]
[1739694766962,5.1655,193.59,193.55,0.03]
[1739694771364,5.1655,193.59,193.55,0.03]
[1739694775477,82.163,193.61,193.55,8.23029781]
[1739694775853,87.328,193.61,193.55,8.23029781]
[1739694778879,87.328,193.61,193.55,0.03]
[1739694779260,82.1,193.6,193.55,8.23029781]
[1739694780974,82.1,193.6,193.55,13.39679781]
[1739694781654,82.1,193.6,193.56,8.20029781]
[1739694781861,82.1,193.6,193.57,8.20029781]
[1739694782377,0.063,193.61,193.59,8.20029781]
[1739694782950,0.063,193.61,193.58,8.20029781]
[1739694783170,0.063,193.61,193.57,8.20029781]
[1739694785083,0.063,193.61,193.56,8.20029781]
[1739694785881,0.063,193.61,193.56,13.36659781]
[1739694786377,0.063,193.61,193.56,8.20029781]
[1739694787159,0.063,193.61,193.57,8.20029781]
[1739694788470,0.063,193.61,193.56,8.20029781]
[1739694789987,0.063,193.61,193.56,13.36659781]
[1739694790187,0.063,193.61,193.57,8.20029781]
[1739694790760,0.063,193.61,193.56,8.20029781]
[1739694792587,0.063,193.61,193.58,8.20029781]
[1739694793491,0.063,193.61,193.57,8.20029781]
[1739694793677,0.063,193.61,193.56,8.20029781]
[1739694793879,0.063,193.61,193.55,8.23029781]
[1739694794079,82.163,193.61,193.55,0.03]
[1739694794779,90.36329781,193.61,193.55,0.03]
[1739694795785,5.1652,193.6,193.55,0.03]
[1739694798192,87.328,193.61,193.56,8.20029781]
[1739694799603,87.328,193.61,193.55,8.23029781]
[1739694799782,87.328,193.61,193.55,0.03]
[1739694800104,87.328,193.61,193.55,8.23029781]
[1739694802996,82.1,193.6,193.55,8.23029781]
[1739694803170,87.2653,193.6,193.55,8.23029781]
[1739694806697,82.1,193.6,193.55,13.39679781]
[1739694808898,0.063,193.61,193.55,13.39679781]
[1739694812900,0.063,193.61,193.57,8.20029781]
[1739694814309,0.063,193.61,193.59,8.20029781]
[1739694815804,0.063,193.61,193.58,8.20029781]
[1739694817803,0.063,193.61,193.59,8.20029781]
[1739694817998,0.063,193.61,193.6,8.20029781]
[1739694820010,0.063,193.61,193.6,13.36549781]
[1739694828697,0.063,193.61,193.6,8.20029781]
[1739694831912,0.063,193.61,193.58,8.20029781]
[1739694832409,0.063,193.61,193.59,8.20029781]
[1739694836019,0.063,193.61,193.58,8.20029781]
[1739694839002,0.063,193.61,193.59,8.20029781]
[1739694840435,0.063,193.61,193.6,8.20029781]
[1739694840807,0.063,193.61,193.6,13.36549781]
[1739694841525,0.063,193.61,193.6,8.20029781]
[1739694843708,0.063,193.61,193.6,13.36549781]
[1739694846529,0.063,193.61,193.6,8.20029781]
[1739694848034,0.063,193.61,193.6,13.36549781]
[1739694848236,0.063,193.61,193.6,8.20029781]
[1739694850834,0.063,193.61,193.58,8.20029781]
[1739694851819,0.063,193.61,193.57,8.20029781]
[1739694852636,0.063,193.61,193.58,8.20029781]
[1739694853441,0.063,193.61,193.59,8.20029781]
[1739694853945,0.063,193.61,193.6,8.20029781]
[1739694858754,0.063,193.61,193.6,13.36549781]
[1739694860644,0.063,193.61,193.6,8.20029781]
[1739694862749,0.063,193.61,193.59,8.20029781]
[1739694865953,0.063,193.61,193.6,8.20029781]
[1739694870334,0.063,193.61,193.6,13.36549781]
[1739694870741,0.063,193.61,193.6,8.20029781]
[1739694870942,0.063,193.61,193.6,13.36549781]
[1739694872046,0.063,193.61,193.6,8.20029781]
[1739694879769,0.063,193.61,193.6,13.36549781]
[1739694899454,0.063,193.61,193.6,26.77734634]
[1739694919101,0.03,193.62,193.6,108.85188898]
[1739694919300,0.03,193.62,193.61,8.20029781]
[1739694919506,0.03,193.62,193.61,21.61214634]
[1739694920619,0.03,193.62,193.61,26.77714634]
[1739694922609,0.03,193.62,193.61,27.77714634]
[1739694924095,0.03,193.62,193.61,26.77714634]
[1739694924298,0.03,193.62,193.61,27.77714634]
[1739694924695,0.03,193.62,193.61,26.77714634]
[1739694924901,0.03,193.62,193.61,108.07714634]
[1739694925911,0.03,193.62,193.61,102.91214634]
[1739694926288,0.03,193.62,193.6,8.20029781]
[1739694926485,0.03,193.62,193.59,8.20029781]
[1739694927412,0.03,193.62,193.6,8.20029781]
[1739694931031,0.03,193.62,193.57,8.20029781]
[1739694931357,8.20029781,193.61,193.55,0.03]
[1739694931510,90.30029781,193.61,193.55,0.03]
[1739694932805,5.1652,193.6,193.55,0.03]
[1739694933414,13.36549781,193.6,193.55,0.03]
[1739694934923,16.27489781,193.59,193.55,0.03]
[1739694936047,5.1658,193.58,193.55,0.03]
[1739694936712,87.2658,193.58,193.55,0.03]
[1739694954658,8.20029781,193.56,193.55,0.03]
[1739694954826,90.30029781,193.56,193.55,0.03]
[1739694956445,95.46659781,193.56,193.55,0.03]
[1739694957037,125.46659781,193.56,193.55,0.03]
[1739694957551,95.46659781,193.56,193.55,0.03]
[1739694960529,43.36659781,193.56,193.55,0.03]
[1739694961427,38.20029781,193.56,193.55,0.03]
[1739694961642,30.0,193.56,193.55,0.03]
[1739694962852,13.36619781,193.58,193.55,0.03]
[1739694963758,8.20029781,193.57,193.55,0.03]
[1739694965968,5.1663,193.56,193.55,0.03]
[1739694966273,43.36659781,193.56,193.55,0.03]
[1739694970767,30.0,193.56,193.55,0.03]
[1739694971242,5.1661,193.57,193.55,0.03]
[1739694972157,82.1,193.57,193.55,0.03]
[1739694977170,87.2661,193.57,193.55,0.03]
[1739694979769,95.46639781,193.57,193.55,0.03]
[1739694979950,8.20029781,193.56,193.55,0.03]
[1739694980142,9.85689781,193.56,193.55,0.03]
[1739694980771,15.02319781,193.56,193.55,0.03]
[1739694980957,45.02319781,193.56,193.55,0.03]
[1739694982877,45.02319781,193.56,193.55,0.0001]
[1739694983048,59.43504634,193.56,193.55,0.0001]
[1739694984383,61.54044962,193.56,193.55,0.0001]
[1739694984976,59.43504634,193.56,193.55,0.0001]
[1739694986185,15.41184853,193.52,193.47,0.063]
[1739694986480,8.20029781,193.48,193.47,0.063]
[1739694987374,43.36869781,193.48,193.47,0.063]
[1739694988272,57.78054634,193.48,193.47,0.063]
[1739694989655,56.78054634,193.48,193.47,0.063]
[1739694990063,57.78054634,193.48,193.47,0.063]
[1739694991586,56.78054634,193.48,193.47,0.063]
[1739694992079,57.78054634,193.48,193.47,0.063]
[1739694992385,50.58024853,193.48,193.47,0.0001]
[1739694992691,50.58024853,193.48,193.4,0.063]
[1739694992692,2.6073,193.42,193.41,0.0001]
[1739694992861,2.6073,193.42,193.4,0.063]
[1739694992862,2.0,193.41,193.4,0.0001]
[1739694993057,20.0,193.38,193.35,0.03]
[1739694993269,28.20029781,193.38,193.35,0.03]
[1739694993591,42.61214634,193.38,193.35,0.03]
[1739694993973,77.78324634,193.38,193.35,0.03]
[1739694994175,78.78324634,193.38,193.35,0.03]
[1739694994372,77.78324634,193.38,193.35,0.03]
[1739694994672,48.78324634,193.38,193.35,0.03]
[1739694994864,78.78324634,193.38,193.35,0.03]
[1739694995067,77.78324634,193.38,193.35,0.03]
[1739694995576,78.78324634,193.38,193.35,0.03]
[1739694996190,77.78324634,193.38,193.35,0.03]
[1739694996699,76.78324634,193.38,193.35,0.03]
[1739694997202,58.20029781,193.38,193.35,0.03]
[1739694997697,38.20029781,193.38,193.35,0.03]
[1739694997986,30.0,193.38,193.35,0.03]
[1739694999192,90.30029781,193.41,193.35,0.03]
[1739694999775,90.30029781,193.41,193.35,5.2019]
[1739695000474,90.30029781,193.41,193.35,0.03]
[1739695000692,8.20029781,193.4,193.35,0.03]
[1739695001807,8.20029781,193.39,193.35,0.03]
[1739695002105,82.1,193.38,193.35,0.03]
[1739695002589,90.30029781,193.38,193.35,0.03]
[1739695003900,95.47139781,193.38,193.35,0.03]
[1739695004399,125.47139781,193.38,193.35,0.03]
[1739695007198,112.1,193.38,193.35,0.03]
[1739695008599,82.1,193.38,193.35,0.03]
[1739695011005,82.1,193.38,193.35,8.23029781]
[1739695011478,82.1,193.38,193.35,0.03]
[1739695013305,82.1,193.38,193.35,8.23029781]
[1739695014584,82.1,193.38,193.35,13.40219781]
[1739695016385,82.1,193.38,193.35,5.2019]
[1739695016585,82.1,193.38,193.35,0.03]
[1739695018685,82.1,193.38,193.35,5.2019]
[1739695020314,82.1,193.38,193.35,0.03]
[1739695022308,95.47139781,193.38,193.35,0.03]
[1739695023015,82.1,193.38,193.35,0.03]
[1739695029119,82.1,193.38,193.37,0.063]
[1739695038620,87.2711,193.38,193.37,0.063]
[1739695040805,82.1,193.38,193.37,0.063]
[1739695041526,87.2711,193.38,193.37,0.063]
[1739695042936,95.47139781,193.38,193.37,0.063]
[1739695043232,13.37139781,193.38,193.37,0.063]
[1739695043609,43.37139781,193.38,193.37,0.063]
[1739695043913,57.78324634,193.38,193.37,0.063]
[1739695044119,2.0,193.36,193.35,0.0001]
[1739695044419,10.20029781,193.36,193.35,0.0001]
[1739695044637,40.20029781,193.36,193.35,0.0001]
[1739695044808,45.37199781,193.36,193.35,0.0001]
[1739695045614,44.37199781,193.36,193.35,0.0001]
[1739695046308,45.37199781,193.36,193.35,0.0001]
[1739695047922,58.78384634,193.36,193.35,0.0001]
[1739695050226,21.0,193.32,193.27,0.03]
[1739695050411,8.20029781,193.28,193.27,0.03]
[1739695051916,13.37409781,193.28,193.27,0.03]
[1739695054325,43.37409781,193.28,193.27,0.03]
[1739695062538,13.37409781,193.28,193.27,0.03]
[1739695065442,43.37409781,193.28,193.27,0.03]
[1739695080562,13.37409781,193.28,193.27,0.03]
[1739695083741,43.37409781,193.28,193.27,0.03]
[1739695086433,13.37409781,193.28,193.27,0.03]
[1739695089366,43.37409781,193.28,193.27,0.03]
[1739695095351,35.1738,193.28,193.27,0.03]
[1739695096366,5.1738,193.28,193.27,0.03]
[1739695098567,8.20029781,193.28,193.27,0.03]
[1739695099474,20.0,193.32,193.27,0.03]
[1739695099475,5.1736,193.29,193.27,0.03]
[1739695099974,13.37389781,193.29,193.27,0.03]
[1739695100978,8.20029781,193.28,193.27,0.03]
[1739695102780,38.20029781,193.28,193.27,0.03]
[1739695102951,43.37409781,193.28,193.27,0.03]
[1739695109378,13.37409781,193.28,193.27,0.03]
[1739695110673,5.1738,193.28,193.27,0.03]
[1739695112076,8.20029781,193.3,193.27,0.03]
[1739695112375,30.0,193.28,193.27,0.03]
[1739695112566,5.1735,193.29,193.27,0.03]
[1739695112959,8.20029781,193.28,193.27,0.03]
[1739695114069,13.37409781,193.28,193.27,0.03]
[1739695115479,43.37409781,193.28,193.27,0.03]
[1739695122976,13.37409781,193.28,193.27,0.03]
[1739695125889,43.37409781,193.28,193.27,0.03]
[1739695127491,13.37409781,193.28,193.27,0.03]
[1739695127793,5.1738,193.28,193.27,0.03]
[1739695134505,8.20029781,193.3,193.27,0.03]
[1739695134693,8.20029781,193.31,193.27,0.03]
[1739695135873,5.1733,193.3,193.27,0.03]
[1739695137199,4.87301969,193.3,193.27,0.03]
[1739695138688,86.97301969,193.3,193.27,0.03]
[1739695141897,82.1,193.29,193.27,0.03]
[1739695142099,82.1,193.29,193.27,8.23029781]
[1739695142400,87.2725,193.33,193.27,13.40419781]
[1739695143001,82.1,193.33,193.27,13.40419781]
[1739695143185,82.1,193.33,193.28,8.20029781]
[1739695143380,0.063,193.35,193.31,8.20029781]
[1739695144495,8.20029781,193.32,193.27,0.03]
[1739695144691,8.20029781,193.31,193.27,0.03]
[1739695145378,8.20029781,193.29,193.27,0.03]
[1739695145688,8.20029781,193.28,193.27,0.03]
[1739695146591,13.37409781,193.28,193.27,0.03]
[1739695148194,43.37409781,193.28,193.27,0.03]
[1739695148704,30.0,193.28,193.27,0.03]
[1739695149410,82.1,193.31,193.27,8.23029781]
[1739695149985,82.1,193.31,193.27,0.03]
[1739695151384,8.20029781,193.28,193.27,0.03]
[1739695152805,13.37409781,193.28,193.27,0.03]
[1739695153394,43.37409781,193.28,193.27,0.03]
[1739695160510,8.20029781,193.28,193.27,0.03]
[1739695162102,38.20029781,193.28,193.27,0.03]
[1739695162406,8.20029781,193.28,193.27,0.03]
[1739695162588,13.37409781,193.28,193.27,0.03]
[1739695165392,43.37409781,193.28,193.27,0.03]
[1739695165590,38.20029781,193.28,193.27,0.03]
[1739695165814,8.20029781,193.28,193.27,0.03]
[1739695166015,13.37389781,193.29,193.27,0.03]
[1739695166992,8.20029781,193.28,193.27,0.03]
[1739695169093,13.37409781,193.28,193.27,0.03]
[1739695170394,43.37409781,193.28,193.27,0.03]
[1739695172635,13.37409781,193.28,193.27,0.03]
[1739695175411,43.37409781,193.28,193.27,0.03]
[1739695184229,13.37409781,193.28,193.27,0.03]
[1739695187529,43.37409781,193.28,193.27,0.03]
[1739695191530,13.37409781,193.28,193.27,0.03]
[1739695194634,43.37409781,193.28,193.27,0.03]
[1739695206352,56.30869781,193.28,193.19,4.94]
[1739695206646,8.20029781,193.25,193.19,4.94]
[1739695207051,90.30029781,193.24,193.19,4.94]
[1739695207237,90.30029781,193.23,193.19,4.94]
[1739695207441,82.1,193.23,193.19,4.94]
[1739695208347,87.2751,193.23,193.19,4.94]
[1739695210037,95.47539781,193.23,193.17,0.03]
[1739695210962,8.20029781,193.21,193.19,0.03]
[1739695211151,90.30029781,193.2,193.19,0.03]
[1739695211356,8.20029781,193.2,193.19,0.03]
[1739695212151,13.37619781,193.2,193.19,0.03]
[1739695213241,43.37619781,193.2,193.19,0.03]
[1739695214941,8.20029781,193.24,193.19,0.03]
[1739695215260,82.1,193.23,193.19,0.03]
[1739695215568,90.30029781,193.23,193.19,0.03]
[1739695215931,8.20029781,193.22,193.19,0.03]
[1739695216642,90.30029781,193.23,193.19,0.03]
[1739695217060,5.1755,193.22,193.19,0.03]
[1739695217941,13.37579781,193.22,193.19,0.03]
[1739695218546,8.20029781,193.21,193.19,0.03]
[1739695218954,82.1,193.2,193.19,0.03]
[1739695219772,90.30029781,193.2,193.19,0.03]
[1739695220468,82.1,193.2,193.19,0.03]
[1739695220764,87.2759,193.2,193.19,0.03]
[1739695221074,117.2759,193.2,193.19,0.03]
[1739695221970,125.47619781,193.2,193.19,0.03]
[1739695223068,43.37619781,193.2,193.19,0.03]
[1739695223443,44.93729781,193.2,193.19,0.03]
[1739695226668,58.34914634,193.2,193.19,0.03]
[1739695228666,59.34914634,193.2,193.17,0.03]
[1739695228867,41.61214634,193.18,193.17,0.03]
[1739695229048,42.61214634,193.18,193.17,0.0001]
[1739695229668,21.61214634,193.18,193.17,0.0001]
[1739695229849,56.78864634,193.18,193.17,0.0001]
[1739695230056,57.78864634,193.18,193.17,0.0001]
[1739695230257,56.78864634,193.18,193.17,0.0001]
[1739695230456,57.78864634,193.18,193.17,0.0001]
[1739695230847,56.78864634,193.18,193.17,0.0001]
[1739695233355,43.37679781,193.18,193.17,0.0001]
[1739695234474,43.43979781,193.18,193.17,0.0001]
[1739695237563,13.43979781,193.18,193.17,0.0001]
[1739695238159,33.43979781,193.18,193.17,0.0001]
[1739695239582,46.85164634,193.18,193.17,0.0001]
[1739695239759,27.85164634,193.18,193.17,0.0001]
[1739695239959,28.85164634,193.18,193.17,0.0001]
[1739695240687,58.85164634,193.18,193.17,0.0001]
[1739695241076,57.85164634,193.18,193.17,0.0001]
[1739695241679,58.85164634,193.18,193.17,0.0001]
[1739695243877,56.85164634,193.18,193.17,0.0001]
[1739695245582,57.85164634,193.18,193.17,0.0001]
[1739695245880,58.85164634,193.18,193.17,0.0001]
[1739695246782,58.85164634,193.18,193.07,0.03]
[1739695246783,20.0,193.14,193.07,0.03]
[1739695247081,8.20029781,193.11,193.07,0.03]
[1739695247581,8.20029781,193.09,193.07,0.03]
[1739695247882,5.1792,193.08,193.07,0.03]
[1739695248295,13.37949781,193.08,193.07,0.03]
[1739695248479,43.37949781,193.08,193.07,0.03]
[1739695248661,69.73934634,193.08,193.0,8.1564]
[1739695248967,8.20029781,193.04,193.0,8.1564]
[1739695249476,62.53904853,193.08,192.96,1.6292]
[1739695249477,8.20029781,193.02,192.96,1.6292]
[1739695249674,13.38119781,193.02,192.96,1.6292]
[1739695250064,8.20029781,193.02,192.96,9.82949781]
[1739695250564,90.30029781,193.01,192.96,1.6292]
[1739695250771,8.20029781,192.98,192.92,8.20029781]
[1739695250975,8.20029781,192.97,192.9,8.20029781]
[1739695251171,8.20029781,192.96,192.9,8.20029781]
[1739695252782,8.20029781,192.96,192.89,21.27119781]
[1739695253906,8.20029781,192.97,192.9,8.20029781]
[1739695254564,8.20029781,192.97,192.9,13.38429781]
[1739695256281,8.20029781,192.99,192.92,8.20029781]
[1739695256483,8.20029781,192.99,192.9,5.184]
[1739695256484,82.1,193.0,192.95,8.20029781]
[1739695256682,11.94029781,193.03,192.96,8.20029781]
[1739695256882,8.20029781,193.03,192.96,8.20029781]
[1739695257695,8.20029781,193.03,192.96,13.38249781]
[1739695258973,90.30029781,193.04,192.97,8.20029781]
[1739695259178,82.1,193.03,192.97,8.20029781]
[1739695259495,90.30029781,193.03,192.96,13.38249781]
[1739695260982,90.30029781,193.03,192.97,8.20029781]
[1739695261194,82.1,193.03,192.97,8.20029781]
[1739695262415,82.1,193.03,192.98,8.20029781]
[1739695263822,82.1,193.03,192.99,8.20029781]
[1739695263986,82.1,193.03,193.0,8.20029781]
[1739695264302,82.1,193.06,193.0,8.20029781]
[1739695264512,82.1,193.06,193.01,8.20029781]
[1739695265421,82.1,193.06,193.0,8.20029781]
[1739695265721,82.1,193.06,193.01,8.20029781]
[1739695266127,82.1,193.06,193.02,8.20029781]
[1739695267831,82.1,193.06,193.02,13.38099781]
[1739695268012,82.1,193.06,193.03,8.20029781]
[1739695268321,82.1,193.06,193.02,8.20029781]
[1739695268519,87.2797,193.06,193.0,11.94029781]
[1739695268694,95.47999781,193.06,193.0,3.74]
[1739695269717,95.47999781,193.06,192.99,8.20029781]
[1739695270235,13.38049781,193.05,192.98,13.38209781]
[1739695271032,5.1802,193.05,192.99,8.20029781]
[1739695271802,5.1802,193.05,192.98,5.1818]
[1739695271803,13.38049781,193.05,192.98,8.20029781]
[1739695272000,8.20029781,193.04,192.97,16.14779781]
[1739695272412,8.20029781,193.04,192.97,21.32989781]
[1739695273823,5.1804,193.04,192.98,8.20029781]
[1739695275724,5.1804,193.04,192.98,8.20029781]
[1739695276820,90.30029781,193.03,192.97,0.03]
[1739695277809,5.1808,193.02,192.97,0.03]
[1739695278524,13.38109781,193.02,192.97,0.03]
[1739695278825,8.20029781,192.99,192.97,0.03]
[1739695279202,8.20029781,192.98,192.97,0.03]
[1739695280028,13.38209781,192.98,192.97,0.03]
[1739695280423,5.1818,192.98,192.97,0.03]
[1739695280626,13.38189781,192.99,192.97,0.03]
[1739695280825,5.1816,192.99,192.97,0.03]
[1739695281138,82.1,193.01,192.97,0.03]
[1739695281736,5.181,193.02,192.97,0.03]
[1739695282831,13.38079781,193.03,192.97,0.03]
[1739695283219,13.38079781,193.03,192.97,8.23029781]
[1739695284709,13.38079781,193.03,192.97,0.03]
[1739695285720,8.20029781,193.01,192.97,0.03]
[1739695286120,8.20029781,193.02,192.97,0.03]
[1739695286739,5.181,193.01,192.97,0.03]
[1739695287738,82.1,193.0,192.97,0.03]
[1739695287916,90.30029781,193.0,192.97,0.03]
[1739695288116,8.20029781,192.99,192.97,0.03]
[1739695288919,5.1818,192.98,192.97,0.03]
[1739695290739,90.30029781,193.0,192.97,0.03]
[1739695290919,5.1816,192.99,192.97,0.03]
[1739695291920,13.38189781,192.99,192.97,0.03]
[1739695292322,8.20029781,192.98,192.97,0.03]
[1739695293044,13.38209781,192.98,192.97,0.03]
[1739695293245,5.1818,192.98,192.97,0.03]
[1739695293750,13.38209781,192.98,192.97,0.03]
[1739695295832,13.38209781,192.98,192.97,0.0001]
[1739695296929,26.79394634,192.98,192.97,0.0001]
[1739695297136,20.0,192.95,192.86,1.5749]
[1739695297338,8.20029781,192.92,192.85,8.20029781]
[1739695297740,8.20029781,192.93,192.86,8.20029781]
[1739695298325,5.1834,192.92,192.86,8.20029781]
[1739695298549,5.1829,192.94,192.88,8.20029781]
[1739695298849,90.30029781,192.97,192.9,8.20029781]
[1739695299157,5.1824,192.96,192.91,8.20029781]
[1739695300139,5.1821,192.97,192.91,8.20029781]
[1739695300848,13.38239781,192.97,192.9,8.20029781]
[1739695301251,5.1821,192.97,192.91,8.20029781]
[1739695301445,5.1821,192.97,192.92,8.20029781]
[1739695301627,8.20029781,193.0,192.93,8.20029781]
[1739695301828,5.1816,192.99,192.93,8.20029781]
[1739695305363,13.38189781,192.99,192.92,8.20029781]
[1739695305835,82.1,193.01,192.96,8.20029781]
[1739695306041,82.1,193.01,192.97,8.20029781]
[1739695306661,13.37999781,193.06,192.99,8.20029781]
[1739695306972,82.1,193.05,192.99,8.20029781]
[1739695307468,82.1,193.05,193.0,8.20029781]
[1739695307638,87.28,193.05,193.0,8.20029781]
[1739695308368,87.28,193.05,192.99,8.20029781]
[1739695310059,8.20029781,193.04,192.97,8.20029781]
[1739695311463,5.1805,193.03,192.97,8.20029781]
[1739695313244,5.1805,193.03,192.97,13.38239781]
[1739695314565,5.1805,193.03,192.97,8.20029781]
[1739695314947,5.1802,193.04,192.98,8.20029781]
[1739695316246,82.1,193.05,193.0,8.20029781]
[1739695317469,82.1,193.05,193.01,8.20029781]
[1739695318348,82.1,193.05,193.02,8.20029781]
[1739695318651,0.063,193.07,193.04,8.20029781]
[1739695318970,0.063,193.07,193.05,8.20029781]
[1739695319148,0.063,193.07,193.04,8.20029781]
[1739695319349,0.063,193.07,193.03,8.20029781]
[1739695320251,0.063,193.07,193.04,8.20029781]
[1739695321069,0.063,193.07,193.03,8.20029781]
[1739695321380,0.063,193.07,193.02,8.20029781]
[1739695323267,8.26329781,193.07,193.0,8.20029781]
[1739695323477,8.20029781,193.04,192.97,8.23029781]
[1739695324179,8.20029781,193.03,192.97,8.23029781]
[1739695324876,8.20029781,193.04,192.97,8.23029781]
[1739695325255,13.38029781,193.05,192.98,8.20029781]
[1739695326060,8.20029781,193.04,192.97,8.23029781]
[1739695326266,13.38029781,193.05,192.98,8.20029781]
[1739695326472,5.18,193.05,192.99,8.20029781]
[1739695328276,13.38029781,193.05,192.98,8.20029781]
[1739695329675,8.20029781,193.04,192.97,8.23029781]
[1739695329859,8.20029781,193.03,192.97,0.03]
[1739695330058,8.20029781,193.04,192.97,0.03]
[1739695330385,5.1805,193.03,192.97,8.23029781]
[1739695330766,5.1805,193.03,192.98,8.20029781]
[1739695332479,5.1802,193.04,192.98,8.20029781]
[1739695332881,5.1802,193.04,192.97,0.03]
[1739695332882,8.20029781,192.99,192.97,0.03]
[1739695333391,8.20029781,193.01,192.97,0.03]
[1739695334162,82.1,193.02,192.97,0.03]
[1739695334585,5.181,193.01,192.97,0.03]
[1739695334764,5.181,193.01,192.97,8.23029781]
[1739695335278,82.1,193.02,192.98,8.20029781]
[1739695335279,87.2808,193.02,192.98,8.20029781]
[1739695335686,82.1,193.02,192.98,8.20029781]
[1739695336388,87.2808,193.02,192.98,8.20029781]
[1739695338286,87.2808,193.02,192.97,8.23029781]
[1739695338470,87.2808,193.02,192.97,0.03]
[1739695339075,95.48109781,193.02,192.97,0.03]
[1739695339788,87.2808,193.02,192.97,8.23029781]
[1739695342188,87.2808,193.02,192.97,0.03]
[1739695344096,87.2808,193.02,192.98,8.20029781]
[1739695344097,82.1,193.02,192.98,8.20029781]
[1739695344275,82.1,193.02,193.0,8.20029781]
[1739695345386,82.1,193.02,192.99,8.20029781]
[1739695345674,0.063,193.06,193.01,8.20029781]
[1739695345997,0.063,193.06,193.02,8.20029781]
[1739695346992,0.063,193.06,193.04,8.20029781]
[1739695352074,0.063,193.06,193.05,8.20029781]
[1739695354916,0.063,193.06,193.05,13.38029781]
[1739695355287,0.063,193.06,193.05,8.20029781]
[1739695358607,0.063,193.06,193.05,13.38029781]
[1739695359507,0.063,193.06,193.05,28.36044634]
[1739695362781,0.063,193.06,193.05,9.76859781]
[1739695362986,0.063,193.06,193.05,8.20029781]
[1739695364908,0.063,193.06,193.05,7.70029781]
[1739695366087,0.063,193.06,193.05,12.88029781]
[1739695366293,0.063,193.06,193.05,7.70029781]
[1739695371618,0.063,193.06,193.05,12.88029781]
[1739695373712,0.063,193.06,193.05,26.29214634]
[1739695374902,0.063,193.06,193.05,7.70029781]
[1739695375729,0.063,193.06,193.05,7.73029781]
[1739695376018,0.063,193.06,193.05,12.91029781]